[Event "Betsys MČR v online bleskovém šachu 2021"]
[Site "Chess.com"]
[Date "2021.04.17"]
[Round "8"]
[White "Mikulas19"]
[Black "JustFilip05"]
[Result "1-0"]
[WhiteElo "1880"]
[BlackElo "2112"]
[TimeControl "180+1"]
[EndTime "10:21:29 PDT"]
[Termination "Uživatel Mikulas19 zvítězil na čas"]

1. e4 {[%clk 0:03:00.9]} 1... e5 {[%clk 0:02:54.1]} 2. d4 {[%clk 0:03:00.6]}
2... exd4 {[%clk 0:02:52.3]} 3. Qxd4 {[%clk 0:03:01.5]} 3... Nc6 {[%clk
0:02:51.4]} 4. Qe3 {[%clk 0:03:01.4]} 4... b6 {[%clk 0:02:49.6]} 5. Nc3 {[%clk
0:03:00.7]} 5... Bc5 {[%clk 0:02:49.3]} 6. Qg3 {[%clk 0:03:00.7]} 6... Qf6
{[%clk 0:02:44.1]} 7. Nd5 {[%clk 0:02:57.7]} 7... Qd4 {[%clk 0:02:07.2]} 8.
Nxc7+ {[%clk 0:02:22.7]} 8... Kf8 {[%clk 0:02:06.6]} 9. Nxa8 {[%clk 0:02:20.5]}
9... Qxe4+ {[%clk 0:02:06.4]} 10. Be3 {[%clk 0:01:58.8]} 10... Qb4+ {[%clk
0:02:04.7]} 11. c3 {[%clk 0:01:51.3]} 11... Qxb2 {[%clk 0:02:04.4]} 12. Bxc5+
{[%clk 0:01:50.2]} 12... bxc5 {[%clk 0:02:04.9]} 13. Qd6+ {[%clk 0:01:37]} 13...
Nge7 {[%clk 0:02:03.5]} 14. Rd1 {[%clk 0:01:30.3]} 14... Qxc3+ {[%clk
0:02:03.4]} 15. Qd2 {[%clk 0:01:29.8]} 15... Qe5+ {[%clk 0:02:03]} 16. Be2
{[%clk 0:01:24.1]} 16... Bb7 {[%clk 0:02:02.8]} 17. Nf3 {[%clk 0:01:23.1]} 17...
Qb8 {[%clk 0:01:59.8]} 18. Qxd7 {[%clk 0:01:15.3]} 18... Qxa8 {[%clk 0:01:59.7]}
19. O-O {[%clk 0:01:09.2]} 19... g6 {[%clk 0:01:59.8]} 20. Bc4 {[%clk
0:01:04.9]} 20... Kg7 {[%clk 0:01:48.8]} 21. Ng5 {[%clk 0:00:51.9]} 21... Rd8
{[%clk 0:01:37.4]} 22. Qh3 {[%clk 0:00:36.4]} 22... h6 {[%clk 0:00:51.5]} 23.
Nxf7 {[%clk 0:00:33.8]} 23... Nf5 {[%clk 0:00:45.3]} 24. Nxd8 {[%clk 0:00:24.8]}
24... Nxd8 {[%clk 0:00:45.5]} 25. Qc3+ {[%clk 0:00:23.4]} 25... Nd4 {[%clk
0:00:45]} 26. f3 {[%clk 0:00:19.9]} 26... Kh7 {[%clk 0:00:43.7]} 27. Rfe1 {[%clk
0:00:18.5]} 27... N8c6 {[%clk 0:00:40.2]} 28. Qd3 {[%clk 0:00:15.2]} 28... Qf8
{[%clk 0:00:36.4]} 29. Bd5 {[%clk 0:00:11.7]} 29... h5 {[%clk 0:00:24.9]} 30.
Qe4 {[%clk 0:00:11.1]} 30... Kh6 {[%clk 0:00:18.5]} 31. Rxd4 {[%clk 0:00:10.5]}
31... Nxd4 {[%clk 0:00:02.8]} 32. Bxb7 {[%clk 0:00:09.6]} 32... Qf6 {[%clk
0:00:03.3]} 33. Qe3+ {[%clk 0:00:08.2]} 33... Kh7 {[%clk 0:00:03.1]} 34. Qe7+
{[%clk 0:00:08.1]} 34... Qxe7 {[%clk 0:00:03.7]} 35. Rxe7+ {[%clk 0:00:08.4]}
35... Kh6 {[%clk 0:00:04.4]} 36. Rc7 {[%clk 0:00:08]} 1-0

[Event "Betsys MČR v online bleskovém šachu 2021"]
[Site "Chess.com"]
[Date "2021.04.17"]
[Round "8"]
[White "matycz07"]
[Black "vadoto"]
[Result "0-1"]
[WhiteElo "1010"]
[BlackElo "1357"]
[TimeControl "180+1"]
[EndTime "10:21:29 PDT"]
[Termination "Uživatel vadoto zvítězil matem"]

1. e4 {[%clk 0:02:56.1]} 1... e5 {[%clk 0:02:57.1]} 2. Nf3 {[%clk 0:02:56.8]}
2... Nc6 {[%clk 0:02:56]} 3. Nc3 {[%clk 0:02:57.3]} 3... Nf6 {[%clk 0:02:53.4]}
4. Bc4 {[%clk 0:02:57.9]} 4... Bc5 {[%clk 0:02:52.8]} 5. d3 {[%clk 0:02:58.5]}
5... d6 {[%clk 0:02:52.8]} 6. O-O {[%clk 0:02:58.6]} 6... Bg4 {[%clk 0:02:52.3]}
7. h3 {[%clk 0:02:56.2]} 7... Bh5 {[%clk 0:02:51.9]} 8. g4 {[%clk 0:02:49.8]}
8... Bg6 {[%clk 0:02:51.3]} 9. Ng5 {[%clk 0:02:50.7]} 9... Nd4 {[%clk
0:02:45.2]} 10. Be3 {[%clk 0:02:47.2]} 10... O-O {[%clk 0:02:40.2]} 11. Bxd4
{[%clk 0:02:45.6]} 11... Bxd4 {[%clk 0:02:39.9]} 12. Nd5 {[%clk 0:02:45.6]}
12... Nxd5 {[%clk 0:02:36.8]} 13. Bxd5 {[%clk 0:02:45.6]} 13... Qxg5 {[%clk
0:02:36.1]} 14. c3 {[%clk 0:02:43.9]} 14... Bb6 {[%clk 0:02:33.8]} 15. Kg2
{[%clk 0:02:42.5]} 15... c6 {[%clk 0:02:29.8]} 16. Bb3 {[%clk 0:02:41.4]} 16...
Kh8 {[%clk 0:02:27.3]} 17. f3 {[%clk 0:02:39.8]} 17... Be3 {[%clk 0:02:16.6]}
18. d4 {[%clk 0:02:33.3]} 18... Bf4 {[%clk 0:02:13.5]} 19. dxe5 {[%clk
0:02:30.4]} 19... Bxe5 {[%clk 0:02:13.1]} 20. Qe2 {[%clk 0:02:22.5]} 20... Qf4
{[%clk 0:02:10.5]} 21. Kf2 {[%clk 0:02:21]} 21... Qg3+ {[%clk 0:02:08.6]} 22.
Ke3 {[%clk 0:02:19.1]} 22... Bf4+ {[%clk 0:02:05.4]} 23. Kd3 {[%clk 0:02:18.3]}
23... Rfe8 {[%clk 0:01:58.8]} 24. Rg1 {[%clk 0:02:13.4]} 24... Qh4 {[%clk
0:01:54.7]} 25. Raf1 {[%clk 0:01:55.6]} 25... d5 {[%clk 0:01:45]} 26. Kd4 {[%clk
0:01:50.3]} 26... Qf6+ {[%clk 0:01:42.9]} 27. Kc5 {[%clk 0:01:49.4]} 27... Qd6+
{[%clk 0:01:39.7]} 28. Kd4 {[%clk 0:01:46.2]} 28... Be5+ {[%clk 0:01:38.3]} 29.
Ke3 {[%clk 0:01:45.3]} 29... dxe4 {[%clk 0:01:31.8]} 30. f4 {[%clk 0:01:42.6]}
30... Qc5+ {[%clk 0:01:27]} 31. Kd2 {[%clk 0:01:36.5]} 31... e3+ {[%clk
0:01:12.1]} 32. Kc1 {[%clk 0:01:31.6]} 32... Bxc3 {[%clk 0:00:56.8]} 33. bxc3
{[%clk 0:01:30.2]} 33... Qxc3+ {[%clk 0:00:56.3]} 34. Kd1 {[%clk 0:01:28.2]}
34... Rad8+ {[%clk 0:00:50.6]} 35. Qd3 {[%clk 0:01:01.7]} 35... Rxd3+ {[%clk
0:00:49.1]} 36. Ke2 {[%clk 0:01:02.6]} 36... Qd2+ {[%clk 0:00:47.9]} 37. Kf3
{[%clk 0:01:02.4]} 37... Be4+ {[%clk 0:00:45.9]} 38. Kg3 {[%clk 0:01:02.7]}
38... e2+ {[%clk 0:00:44.6]} 39. Kh4 {[%clk 0:00:54.1]} 39... Bd5 {[%clk
0:00:29.1]} 40. Bxd5 {[%clk 0:00:47.8]} 40... Rxd5 {[%clk 0:00:25.2]} 41. Re1
{[%clk 0:00:48.7]} 41... Re3 {[%clk 0:00:19.3]} 42. a3 {[%clk 0:00:39.6]} 42...
Qa2 {[%clk 0:00:18.8]} 43. Rg3 {[%clk 0:00:37.7]} 43... Rxg3 {[%clk 0:00:16.7]}
44. Kxg3 {[%clk 0:00:37.7]} 44... Rd1 {[%clk 0:00:16]} 45. Kh4 {[%clk
0:00:38.6]} 45... Rxe1 {[%clk 0:00:15.5]} 46. f5 {[%clk 0:00:38.2]} 46... Rh1
{[%clk 0:00:15.1]} 47. g5 {[%clk 0:00:37.5]} 47... e1=Q+ {[%clk 0:00:14.3]} 48.
Kg4 {[%clk 0:00:36.4]} 48... Qg2+ {[%clk 0:00:13.4]} 49. Kf4 {[%clk 0:00:34]}
49... Rf1# {[%clk 0:00:13.7]} 0-1

[Event "Betsys MČR v online bleskovém šachu 2021"]
[Site "Chess.com"]
[Date "2021.04.17"]
[Round "8"]
[White "Akdub"]
[Black "Clockwork7orange"]
[Result "0-1"]
[WhiteElo "2102"]
[BlackElo "2320"]
[TimeControl "180+1"]
[EndTime "10:21:30 PDT"]
[Termination "Uživatel Clockwork7orange zvítězil na čas"]

1. e4 {[%clk 0:03:00.9]} 1... c5 {[%clk 0:02:59.1]} 2. c3 {[%clk 0:03:00.6]}
2... d5 {[%clk 0:02:58.2]} 3. exd5 {[%clk 0:03:00.5]} 3... Nf6 {[%clk
0:02:58.7]} 4. d4 {[%clk 0:02:58.7]} 4... cxd4 {[%clk 0:02:59]} 5. cxd4 {[%clk
0:02:57.2]} 5... Nxd5 {[%clk 0:02:58.6]} 6. Nc3 {[%clk 0:02:57.6]} 6... Nc6
{[%clk 0:02:57.1]} 7. Nf3 {[%clk 0:02:57.3]} 7... g6 {[%clk 0:02:55]} 8. Bc4
{[%clk 0:02:53.7]} 8... Nb6 {[%clk 0:02:41.2]} 9. Bb5 {[%clk 0:02:44.1]} 9...
Bd7 {[%clk 0:02:37.5]} 10. O-O {[%clk 0:02:39.8]} 10... Bg7 {[%clk 0:02:36.9]}
11. Be3 {[%clk 0:02:37.9]} 11... O-O {[%clk 0:02:34.6]} 12. Rc1 {[%clk
0:02:30.2]} 12... Bg4 {[%clk 0:02:32.1]} 13. Bxc6 {[%clk 0:02:12.3]} 13... bxc6
{[%clk 0:02:33]} 14. h3 {[%clk 0:02:12.7]} 14... Bxf3 {[%clk 0:02:30.4]} 15.
Qxf3 {[%clk 0:02:13]} 15... Nd5 {[%clk 0:02:31.3]} 16. Nxd5 {[%clk 0:02:02.4]}
16... cxd5 {[%clk 0:02:32.2]} 17. Rc5 {[%clk 0:02:01.4]} 17... e6 {[%clk
0:02:31.4]} 18. Rfc1 {[%clk 0:02:01.2]} 18... Qb6 {[%clk 0:02:15.8]} 19. b3
{[%clk 0:01:50.2]} 19... Qb4 {[%clk 0:02:14.9]} 20. Qf4 {[%clk 0:01:39.8]} 20...
h6 {[%clk 0:02:01.9]} 21. h4 {[%clk 0:01:37.5]} 21... a5 {[%clk 0:02:00.1]} 22.
Rc7 {[%clk 0:01:27.4]} 22... a4 {[%clk 0:01:55.5]} 23. bxa4 {[%clk 0:01:09.6]}
23... Rxa4 {[%clk 0:01:56.4]} 24. Rc8 {[%clk 0:01:05.6]} 24... Rxa2 {[%clk
0:01:33.3]} 25. Rxf8+ {[%clk 0:01:02.4]} 25... Qxf8 {[%clk 0:01:09.2]} 26. h5
{[%clk 0:00:51.9]} 26... g5 {[%clk 0:01:06.6]} 27. Qc7 {[%clk 0:00:50.9]} 27...
Qa8 {[%clk 0:00:57.7]} 28. Qd7 {[%clk 0:00:22.1]} 28... Ra1 {[%clk 0:00:49.9]}
29. Rxa1 {[%clk 0:00:21.5]} 29... Qxa1+ {[%clk 0:00:49.5]} 30. Kh2 {[%clk
0:00:22.4]} 30... Qa8 {[%clk 0:00:49.2]} 31. Kg1 {[%clk 0:00:19.3]} 31... Qa1+
{[%clk 0:00:44.5]} 32. Kh2 {[%clk 0:00:18.2]} 32... Bxd4 {[%clk 0:00:44.3]} 33.
Qe8+ {[%clk 0:00:15.9]} 33... Kg7 {[%clk 0:00:44]} 34. Bd2 {[%clk 0:00:14.6]}
34... Be5+ {[%clk 0:00:40.1]} 35. g3 {[%clk 0:00:14.3]} 35... Qb2 {[%clk
0:00:34.6]} 36. Be1 {[%clk 0:00:12.8]} 36... d4 {[%clk 0:00:30.4]} 37. Qc6
{[%clk 0:00:11.4]} 37... d3 {[%clk 0:00:27.3]} 38. Qe4 {[%clk 0:00:07.8]} 38...
Qd4 {[%clk 0:00:25.1]} 39. Qf3 {[%clk 0:00:03.5]} 39... d2 {[%clk 0:00:23.2]}
40. Bxd2 {[%clk 0:00:01.8]} 40... Qxd2 {[%clk 0:00:24.1]} 41. Qe4 {[%clk
0:00:01.8]} 41... Qxf2+ {[%clk 0:00:22.6]} 0-1

[Event "Betsys MČR v online bleskovém šachu 2021"]
[Site "Chess.com"]
[Date "2021.04.17"]
[Round "8"]
[White "KatkaZ"]
[Black "jsebesta"]
[Result "1-0"]
[WhiteElo "1853"]
[BlackElo "1633"]
[TimeControl "180+1"]
[EndTime "10:21:30 PDT"]
[Termination "Uživatel KatkaZ zvítězil po vzdání soupeře"]

1. Nf3 {[%clk 0:03:00.9]} 1... Nf6 {[%clk 0:02:58.6]} 2. g3 {[%clk 0:03:01]}
2... g6 {[%clk 0:02:58.5]} 3. Bg2 {[%clk 0:03:01.4]} 3... Bg7 {[%clk 0:02:58.8]}
4. d3 {[%clk 0:03:01.9]} 4... d5 {[%clk 0:02:57.6]} 5. Nbd2 {[%clk 0:03:02.2]}
5... O-O {[%clk 0:02:56.1]} 6. O-O {[%clk 0:03:02]} 6... c5 {[%clk 0:02:55.7]}
7. c3 {[%clk 0:03:00]} 7... Nc6 {[%clk 0:02:55.5]} 8. e4 {[%clk 0:02:59.6]} 8...
dxe4 {[%clk 0:02:54.1]} 9. dxe4 {[%clk 0:02:59]} 9... Bg4 {[%clk 0:02:52]} 10.
h3 {[%clk 0:02:58.1]} 10... Bxf3 {[%clk 0:02:43.4]} 11. Qxf3 {[%clk 0:02:56.3]}
11... Ne5 {[%clk 0:02:41.9]} 12. Qe3 {[%clk 0:02:49.8]} 12... b6 {[%clk
0:02:35.8]} 13. f4 {[%clk 0:02:31.1]} 13... Nc6 {[%clk 0:02:19.7]} 14. e5 {[%clk
0:02:25.9]} 14... Nd5 {[%clk 0:02:19.4]} 15. Qf3 {[%clk 0:02:23.3]} 15... e6
{[%clk 0:02:17]} 16. Ne4 {[%clk 0:02:17.3]} 16... f6 {[%clk 0:02:00.8]} 17. exf6
{[%clk 0:02:12]} 17... Bxf6 {[%clk 0:02:00]} 18. Nxf6+ {[%clk 0:02:10.8]} 18...
Qxf6 {[%clk 0:01:59.8]} 19. a3 {[%clk 0:02:05]} 19... Nce7 {[%clk 0:01:56.3]}
20. Qe2 {[%clk 0:01:52.1]} 20... Nf5 {[%clk 0:01:52.4]} 21. Kh2 {[%clk
0:01:48.7]} 21... Rad8 {[%clk 0:01:40.3]} 22. Bd2 {[%clk 0:01:19.9]} 22... Rfe8
{[%clk 0:01:28.3]} 23. Rad1 {[%clk 0:01:18.6]} 23... Nde7 {[%clk 0:01:13.7]} 24.
Rfe1 {[%clk 0:01:01.8]} 24... Nc8 {[%clk 0:00:58.7]} 25. Bc6 {[%clk 0:00:44.5]}
25... Re7 {[%clk 0:00:57.6]} 26. Bc1 {[%clk 0:00:43.4]} 26... Rxd1 {[%clk
0:00:57.1]} 27. Rxd1 {[%clk 0:00:41.7]} 27... Rc7 {[%clk 0:00:55.2]} 28. Bb5
{[%clk 0:00:32.7]} 28... Ncd6 {[%clk 0:00:49.8]} 29. Bd3 {[%clk 0:00:27.6]}
29... Ne7 {[%clk 0:00:27]} 30. Bc2 {[%clk 0:00:24.6]} 30... Ndf5 {[%clk
0:00:26.2]} 31. Bb3 {[%clk 0:00:16.6]} 31... Rc6 {[%clk 0:00:18.6]} 32. Qf3
{[%clk 0:00:12.3]} 32... Rd6 {[%clk 0:00:17.7]} 33. Rxd6 {[%clk 0:00:11]} 33...
Nxd6 {[%clk 0:00:17.8]} 34. Qa8+ {[%clk 0:00:10.3]} 34... Kg7 {[%clk 0:00:18.1]}
35. Qxa7 {[%clk 0:00:10.2]} 35... Nf7 {[%clk 0:00:17.1]} 36. Qxb6 {[%clk
0:00:09.8]} 36... Qf5 {[%clk 0:00:17.1]} 37. Qxe6 {[%clk 0:00:08.1]} 37... Qxe6
{[%clk 0:00:15.7]} 38. Bxe6 {[%clk 0:00:07.4]} 38... Nc6 {[%clk 0:00:16.6]} 39.
Bd5 {[%clk 0:00:06.6]} 39... Na5 {[%clk 0:00:15.9]} 40. b4 {[%clk 0:00:05.9]}
40... cxb4 {[%clk 0:00:15.9]} 41. axb4 {[%clk 0:00:05.6]} 1-0

[Event "Betsys MČR v online bleskovém šachu 2021"]
[Site "Chess.com"]
[Date "2021.04.17"]
[Round "8"]
[White "WhiteLittleHorse"]
[Black "Berzeger"]
[Result "0-1"]
[WhiteElo "958"]
[BlackElo "1036"]
[TimeControl "180+1"]
[EndTime "10:21:30 PDT"]
[Termination "Uživatel Berzeger zvítězil na čas"]

1. e4 {[%clk 0:03:00.9]} 1... e5 {[%clk 0:02:59.2]} 2. Nf3 {[%clk 0:03:01.3]}
2... Nc6 {[%clk 0:02:59.6]} 3. Nc3 {[%clk 0:03:00.3]} 3... Bb4 {[%clk
0:02:52.8]} 4. a3 {[%clk 0:02:57]} 4... Ba5 {[%clk 0:02:52.8]} 5. b4 {[%clk
0:02:54.9]} 5... Bb6 {[%clk 0:02:53]} 6. Bb2 {[%clk 0:02:51.2]} 6... d6 {[%clk
0:02:47.4]} 7. h3 {[%clk 0:02:44.7]} 7... Nf6 {[%clk 0:02:44.9]} 8. Bb5 {[%clk
0:02:39.8]} 8... O-O {[%clk 0:02:41.6]} 9. Nd5 {[%clk 0:02:36]} 9... Nxd5 {[%clk
0:02:19.6]} 10. exd5 {[%clk 0:02:33.8]} 10... Ne7 {[%clk 0:02:18.2]} 11. d4
{[%clk 0:02:27.3]} 11... Nxd5 {[%clk 0:01:59.5]} 12. dxe5 {[%clk 0:02:19.8]}
12... dxe5 {[%clk 0:01:59.7]} 13. Nxe5 {[%clk 0:01:59.4]} 13... c6 {[%clk
0:01:45.7]} 14. Bc4 {[%clk 0:01:58.1]} 14... Nf4 {[%clk 0:01:40.2]} 15. Qxd8
{[%clk 0:01:47]} 15... Bxd8 {[%clk 0:01:34.4]} 16. O-O {[%clk 0:01:45.7]} 16...
Bf6 {[%clk 0:01:24.9]} 17. Rab1 {[%clk 0:01:16.1]} 17... Bf5 {[%clk 0:01:03.5]}
18. Bd3 {[%clk 0:00:59.4]} 18... Bxd3 {[%clk 0:01:00]} 19. Nxd3 {[%clk
0:00:57.1]} 19... Bxb2 {[%clk 0:00:49]} 20. Rxb2 {[%clk 0:00:49.4]} 20... Nxd3
{[%clk 0:00:49.1]} 21. cxd3 {[%clk 0:00:46.7]} 21... Rad8 {[%clk 0:00:49.6]} 22.
Rd2 {[%clk 0:00:44.5]} 22... Rd7 {[%clk 0:00:46.9]} 23. Rfd1 {[%clk 0:00:42.6]}
23... Re8 {[%clk 0:00:47.4]} 24. Kh2 {[%clk 0:00:39.1]} 24... h6 {[%clk
0:00:39.4]} 25. Kg3 {[%clk 0:00:28.3]} 25... Rde7 {[%clk 0:00:39.4]} 26. f4
{[%clk 0:00:26.9]} 26... Re2 {[%clk 0:00:35.6]} 27. Rxe2 {[%clk 0:00:21.2]}
27... Rxe2 {[%clk 0:00:36.5]} 28. Kf3 {[%clk 0:00:21]} 28... Ra2 {[%clk
0:00:35.9]} 29. d4 {[%clk 0:00:17.8]} 29... Rxa3+ {[%clk 0:00:35.6]} 30. Kg4
{[%clk 0:00:15.1]} 30... Rb3 {[%clk 0:00:34.8]} 31. d5 {[%clk 0:00:12.2]} 31...
cxd5 {[%clk 0:00:34.7]} 32. Rxd5 {[%clk 0:00:10.4]} 32... Rxb4 {[%clk
0:00:35.3]} 33. Rd8+ {[%clk 0:00:04.9]} 33... Kh7 {[%clk 0:00:34.8]} 34. Ra8
{[%clk 0:00:04.8]} 34... a6 {[%clk 0:00:33.4]} 35. Rd8 {[%clk 0:00:03.4]} 35...
f6 {[%clk 0:00:30.1]} 36. Rd3 {[%clk 0:00:03.5]} 36... b5 {[%clk 0:00:30.1]} 37.
Rf3 {[%clk 0:00:01.4]} 37... a5 {[%clk 0:00:30.1]} 38. Kg3 {[%clk 0:00:01.9]}
38... a4 {[%clk 0:00:30.4]} 39. Kh2 {[%clk 0:00:02.1]} 39... Rb3 {[%clk
0:00:24.8]} 40. Rf1 {[%clk 0:00:02.5]} 40... a3 {[%clk 0:00:24.6]} 41. Ra1
{[%clk 0:00:02.1]} 41... b4 {[%clk 0:00:23.8]} 0-1

[Event "Betsys MČR v online bleskovém šachu 2021"]
[Site "Chess.com"]
[Date "2021.04.17"]
[Round "8"]
[White "Bolavey_Kotnik"]
[Black "kecalk"]
[Result "1-0"]
[WhiteElo "2355"]
[BlackElo "2142"]
[TimeControl "180+1"]
[EndTime "10:21:32 PDT"]
[Termination "Uživatel Bolavey_Kotnik zvítězil na čas"]

1. e4 {[%clk 0:03:00.5]} 1... g6 {[%clk 0:02:59.1]} 2. Nc3 {[%clk 0:02:57.6]}
2... Bg7 {[%clk 0:02:59.3]} 3. f4 {[%clk 0:02:57.9]} 3... c5 {[%clk 0:02:55]} 4.
Nf3 {[%clk 0:02:56.7]} 4... Nc6 {[%clk 0:02:54.8]} 5. Bb5 {[%clk 0:02:53.1]}
5... Nf6 {[%clk 0:02:52.5]} 6. O-O {[%clk 0:02:48.1]} 6... O-O {[%clk
0:02:45.2]} 7. Bxc6 {[%clk 0:02:47.9]} 7... dxc6 {[%clk 0:02:46.1]} 8. d3 {[%clk
0:02:44.4]} 8... Nd7 {[%clk 0:02:31.9]} 9. Qe1 {[%clk 0:02:35.7]} 9... b5 {[%clk
0:02:18.7]} 10. a4 {[%clk 0:02:10.9]} 10... b4 {[%clk 0:02:04.4]} 11. Nd1 {[%clk
0:02:09.5]} 11... e5 {[%clk 0:02:05.3]} 12. f5 {[%clk 0:01:56.3]} 12... c4
{[%clk 0:01:30.4]} 13. Qxb4 {[%clk 0:01:17.1]} 13... cxd3 {[%clk 0:01:27]} 14.
cxd3 {[%clk 0:01:18]} 14... Re8 {[%clk 0:01:25.3]} 15. Nf2 {[%clk 0:01:07.9]}
15... Rb8 {[%clk 0:01:23.3]} 16. Qc4 {[%clk 0:00:55.6]} 16... Nb6 {[%clk
0:01:09.2]} 17. Qa2 {[%clk 0:00:45.7]} 17... gxf5 {[%clk 0:01:04.4]} 18. a5
{[%clk 0:00:40.8]} 18... fxe4 {[%clk 0:00:54.3]} 19. Ng5 {[%clk 0:00:28.3]}
19... Nd5 {[%clk 0:00:52.7]} 20. dxe4 {[%clk 0:00:27.1]} 20... h6 {[%clk
0:00:51.9]} 21. Nxf7 {[%clk 0:00:26.8]} 21... Kxf7 {[%clk 0:00:51.2]} 22. exd5
{[%clk 0:00:27.1]} 22... Ba6 {[%clk 0:00:48.8]} 23. d6+ {[%clk 0:00:24.3]} 23...
Kg6 {[%clk 0:00:35.2]} 24. Qb1+ {[%clk 0:00:19.9]} 24... e4 {[%clk 0:00:35.4]}
25. Re1 {[%clk 0:00:14]} 25... Bd4 {[%clk 0:00:29]} 26. Be3 {[%clk 0:00:13]}
26... Qxd6 {[%clk 0:00:15.4]} 27. Nxe4 {[%clk 0:00:11.2]} 27... Qe5 {[%clk
0:00:09.3]} 28. Nf2+ {[%clk 0:00:09.1]} 28... Kg7 {[%clk 0:00:07.4]} 29. Bxh6+
{[%clk 0:00:08.2]} 29... Kxh6 {[%clk 0:00:07.5]} 30. Rxe5 {[%clk 0:00:08.8]}
30... Rxe5 {[%clk 0:00:08.3]} 31. Qc1+ {[%clk 0:00:08.1]} 31... Kg7 {[%clk
0:00:06.9]} 32. Qxc6 {[%clk 0:00:04.1]} 1-0

[Event "Betsys MČR v online bleskovém šachu 2021"]
[Site "Chess.com"]
[Date "2021.04.17"]
[Round "8"]
[White "prosinec"]
[Black "jsulc"]
[Result "1/2-1/2"]
[WhiteElo "1755"]
[BlackElo "2045"]
[TimeControl "180+1"]
[EndTime "10:21:32 PDT"]
[Termination "Remíza patem"]

1. Nf3 {[%clk 0:03:00.9]} 1... Nf6 {[%clk 0:02:59.6]} 2. d4 {[%clk 0:03:00.3]}
2... d5 {[%clk 0:02:59]} 3. e3 {[%clk 0:02:59.1]} 3... Bf5 {[%clk 0:02:56.1]} 4.
b3 {[%clk 0:02:54.9]} 4... e6 {[%clk 0:02:54.5]} 5. Bb2 {[%clk 0:02:51.2]} 5...
Nc6 {[%clk 0:02:52.2]} 6. a3 {[%clk 0:02:47.7]} 6... h6 {[%clk 0:02:51.1]} 7.
Nbd2 {[%clk 0:02:46.8]} 7... Bd6 {[%clk 0:02:49.2]} 8. Be2 {[%clk 0:02:46.3]}
8... O-O {[%clk 0:02:48]} 9. O-O {[%clk 0:02:45.7]} 9... Re8 {[%clk 0:02:48.1]}
10. c4 {[%clk 0:02:40.4]} 10... Ne4 {[%clk 0:02:35.8]} 11. Ne5 {[%clk
0:02:28.7]} 11... Ne7 {[%clk 0:02:18.9]} 12. f4 {[%clk 0:02:21.5]} 12... c6
{[%clk 0:02:04.2]} 13. Nxe4 {[%clk 0:02:08.2]} 13... Bxe4 {[%clk 0:02:02.8]} 14.
c5 {[%clk 0:02:01.4]} 14... Bc7 {[%clk 0:02:01.3]} 15. b4 {[%clk 0:01:55.8]}
15... f6 {[%clk 0:01:59.8]} 16. Nf3 {[%clk 0:01:54.4]} 16... Ng6 {[%clk
0:01:51.9]} 17. Bd3 {[%clk 0:01:52.5]} 17... f5 {[%clk 0:01:47]} 18. Ne5 {[%clk
0:01:47.8]} 18... Qf6 {[%clk 0:01:35.5]} 19. Bxe4 {[%clk 0:01:42.1]} 19... fxe4
{[%clk 0:01:08.6]} 20. Qh5 {[%clk 0:01:39.4]} 20... Nxe5 {[%clk 0:01:01.6]} 21.
fxe5 {[%clk 0:01:38]} 21... Qe7 {[%clk 0:01:01.1]} 22. Qg6 {[%clk 0:01:25.9]}
22... Rf8 {[%clk 0:01:00]} 23. Rae1 {[%clk 0:01:15.9]} 23... a5 {[%clk
0:00:42.5]} 24. Re2 {[%clk 0:00:46.9]} 24... axb4 {[%clk 0:00:26.1]} 25. axb4
{[%clk 0:00:33.1]} 25... Rxf1+ {[%clk 0:00:24.8]} 26. Kxf1 {[%clk 0:00:34]}
26... Rf8+ {[%clk 0:00:17.2]} 27. Rf2 {[%clk 0:00:33]} 27... Rxf2+ {[%clk
0:00:16.6]} 28. Kxf2 {[%clk 0:00:33.9]} 28... Qf7+ {[%clk 0:00:16.9]} 29. Qxf7+
{[%clk 0:00:33.7]} 29... Kxf7 {[%clk 0:00:17.8]} 30. g4 {[%clk 0:00:32.4]} 30...
Kg6 {[%clk 0:00:16.8]} 31. Kg3 {[%clk 0:00:31.5]} 31... h5 {[%clk 0:00:16.2]}
32. h4 {[%clk 0:00:27.8]} 32... hxg4 {[%clk 0:00:15.4]} 33. Kxg4 {[%clk
0:00:28.7]} 33... Bd8 {[%clk 0:00:15.1]} 34. h5+ {[%clk 0:00:27.6]} 34... Kh6
{[%clk 0:00:14.7]} 35. Bc3 {[%clk 0:00:25.5]} 35... b6 {[%clk 0:00:13.3]} 36.
Be1 {[%clk 0:00:21.1]} 36... b5 {[%clk 0:00:10.6]} 37. Bg3 {[%clk 0:00:20]}
37... g5 {[%clk 0:00:06.2]} 38. hxg6 {[%clk 0:00:18.3]} 38... Kxg6 {[%clk
0:00:06.3]} 39. Bh4 {[%clk 0:00:12.2]} 39... Bxh4 {[%clk 0:00:05.4]} 40. Kxh4
{[%clk 0:00:13.1]} 40... Kf5 {[%clk 0:00:05.3]} 41. Kh5 {[%clk 0:00:11.9]}
1/2-1/2

[Event "Betsys MČR v online bleskovém šachu 2021"]
[Site "Chess.com"]
[Date "2021.04.17"]
[Round "8"]
[White "ReitteN"]
[Black "androidddd"]
[Result "1-0"]
[WhiteElo "1762"]
[BlackElo "1434"]
[TimeControl "180+1"]
[EndTime "10:21:33 PDT"]
[Termination "Uživatel ReitteN zvítězil na čas"]

1. c4 {[%clk 0:03:00.9]} 1... e5 {[%clk 0:02:57.7]} 2. Nc3 {[%clk 0:02:55.9]}
2... f5 {[%clk 0:02:56.3]} 3. g3 {[%clk 0:02:54.9]} 3... Nf6 {[%clk 0:02:55.8]}
4. Bg2 {[%clk 0:02:52.6]} 4... d6 {[%clk 0:02:52]} 5. d3 {[%clk 0:02:50.2]} 5...
g6 {[%clk 0:02:48.5]} 6. e4 {[%clk 0:02:44.8]} 6... Bg7 {[%clk 0:02:45.6]} 7.
Nge2 {[%clk 0:02:44.4]} 7... O-O {[%clk 0:02:44.2]} 8. O-O {[%clk 0:02:44.4]}
8... h6 {[%clk 0:02:37.8]} 9. Nd5 {[%clk 0:02:40.4]} 9... g5 {[%clk 0:02:30]}
10. Nec3 {[%clk 0:02:37.2]} 10... Nc6 {[%clk 0:02:25.2]} 11. Nxf6+ {[%clk
0:02:14]} 11... Qxf6 {[%clk 0:02:09.1]} 12. Nd5 {[%clk 0:02:10.9]} 12... Qd8
{[%clk 0:02:06]} 13. Rb1 {[%clk 0:02:08.1]} 13... f4 {[%clk 0:01:57.3]} 14. b4
{[%clk 0:01:59.9]} 14... Ne7 {[%clk 0:01:36.4]} 15. a4 {[%clk 0:01:33.5]} 15...
Nxd5 {[%clk 0:01:20.6]} 16. cxd5 {[%clk 0:01:34.4]} 16... fxg3 {[%clk
0:01:19.6]} 17. fxg3 {[%clk 0:01:13.9]} 17... Bd7 {[%clk 0:01:14.9]} 18. Be3
{[%clk 0:01:00.1]} 18... Qe7 {[%clk 0:01:08.2]} 19. Qc2 {[%clk 0:00:55.8]} 19...
c6 {[%clk 0:01:02.2]} 20. Qc4 {[%clk 0:00:29.4]} 20... a6 {[%clk 0:00:54.9]} 21.
Bb6 {[%clk 0:00:12.2]} 21... Rxf1+ {[%clk 0:00:35.1]} 22. Rxf1 {[%clk
0:00:10.3]} 22... Kh7 {[%clk 0:00:29.1]} 23. a5 {[%clk 0:00:07.4]} 23... Rf8
{[%clk 0:00:25.7]} 24. Rxf8 {[%clk 0:00:04.3]} 24... Qxf8 {[%clk 0:00:22.9]} 25.
dxc6 {[%clk 0:00:04.6]} 25... Bxc6 {[%clk 0:00:20.9]} 26. Bh3 {[%clk 0:00:04.5]}
26... Qf3 {[%clk 0:00:16.7]} 27. Bf5+ {[%clk 0:00:04.2]} 27... Kh8 {[%clk
0:00:16.2]} 28. Bf2 {[%clk 0:00:02.4]} 28... Qd1+ {[%clk 0:00:15.7]} 29. Kg2
{[%clk 0:00:02.6]} 29... Qd2 {[%clk 0:00:14.8]} 30. Qf7 {[%clk 0:00:01.5]} 30...
Qc2 {[%clk 0:00:10.2]} 31. Qg6 {[%clk 0:00:01.3]} 31... Kg8 {[%clk 0:00:07.4]}
32. Be6+ {[%clk 0:00:01.8]} 32... Kh8 {[%clk 0:00:06.1]} 33. Bf5 {[%clk
0:00:01.7]} 33... Kg8 {[%clk 0:00:05.9]} 34. Qe6+ {[%clk 0:00:01.9]} 34... Kh8
{[%clk 0:00:04.5]} 35. Qc8+ {[%clk 0:00:02.1]} 1-0